bitfinex/quotes_ETHUSD_20250823
["timestamp","ask_amount","ask_price","bid_price","bid_amount"]
[1755916306282,11.78848241,4715.9,4715.8,0.021]
[1755916306419,9.6679964,4715.9,4715.8,0.021]
[1755916306617,12.09468241,4715.9,4715.8,0.021]
[1755916306817,6.0151964,4715.9,4715.8,0.021]
[1755916307021,10.22264173,4715.9,4715.8,0.021]
[1755916307326,9.6649964,4715.9,4715.8,0.021]
[1755916308156,12.09168241,4715.9,4715.8,0.021]
[1755916308620,12.09187426,4715.9,4715.8,0.021]
[1755916309252,9.97138825,4715.9,4715.8,0.021]
[1755916309423,9.66518825,4715.9,4715.8,0.021]
[1755916309622,10.21531114,4715.9,4715.8,0.021]
[1755916309822,9.88337424,4715.9,4715.8,0.021]
[1755916310268,9.32525135,4715.9,4715.8,0.021]
[1755916310568,12.00381854,4715.9,4715.8,0.021]
[1755916310870,10.17313116,4715.9,4715.8,0.021]
[1755916311026,9.32524998,4715.9,4715.8,0.021]
[1755916311225,5.27084983,4715.9,4715.8,0.3157]
[1755916311524,9.4152514,4715.9,4715.8,0.021]
[1755916311719,12.16636961,4715.9,4715.8,0.021]
[1755916312157,12.82636961,4715.9,4715.8,0.021]
[1755916312357,12.82636961,4715.9,4715.0,0.35]
[1755916312358,2.12082202,4715.2,4715.0,0.35]
[1755916312662,10.20447799,4715.1,4715.0,0.35]
[1755916312859,11.19372939,4715.1,4715.0,0.35]
[1755916313061,11.35559497,4715.1,4715.0,0.35]
[1755916313360,2.12138568,4713.9,4712.6,0.4648]
[1755916313526,16.72879517,4713.9,4712.6,0.4648]
[1755916313726,17.17497093,4713.9,4712.6,0.4648]
[1755916314257,17.38019364,4713.9,4712.6,0.4648]
[1755916314458,17.38019364,4713.9,4709.3,1.631]
[1755916314459,19.57907305,4713.9,4712.1,0.4648]
[1755916314660,3.66,4713.8,4711.1,0.4648]
[1755916314859,5.6799338,4712.9,4711.1,0.4648]
[1755916315045,5.82910595,4712.9,4711.6,0.4648]
[1755916315257,9.0140514,4712.9,4712.4,0.4648]
[1755916315434,9.0140514,4712.9,4708.8,0.02]
[1755916315435,9.3038514,4712.9,4711.3,0.4648]
[1755916315632,12.69559207,4712.9,4711.3,0.4648]
[1755916315874,11.95146142,4712.9,4711.3,0.4648]
[1755916316068,12.69492099,4712.9,4711.3,0.4648]
[1755916316269,13.04826142,4712.9,4711.2,0.4648]
[1755916316571,6.47556801,4712.9,4708.8,0.02]
[1755916316774,6.47618727,4712.9,4712.8,0.3147]
[1755916316943,9.47918727,4712.9,4712.8,0.7795]
[1755916317149,9.03313587,4712.9,4712.8,0.7795]
[1755916317359,9.47869282,4712.9,4712.8,0.3147]
[1755916317671,5.09313587,4712.9,4712.8,0.3147]
[1755916317879,1.96313587,4712.9,4712.8,0.7795]
[1755916318059,5.90013587,4712.9,4712.8,0.4848]
[1755916318382,5.568,4712.9,4712.8,0.4848]
[1755916318542,5.568,4712.9,4712.8,0.02]
[1755916318738,1.631,4712.9,4712.8,0.4848]
[1755916318941,5.567,4712.9,4712.8,0.4848]
[1755916319375,5.567,4712.9,4712.8,0.02]
[1755916319878,8.567,4712.9,4712.8,0.02]
[1755916320082,12.2310146,4712.9,4712.8,0.02]
[1755916320247,5.07637879,4712.9,4712.8,0.02]
[1755916320450,9.01137879,4712.9,4712.8,0.02]
[1755916320684,11.1332146,4712.9,4712.8,0.02]
[1755916320988,12.42330952,4712.9,4712.8,0.02]
[1755916321188,11.76330952,4712.9,4712.8,0.02]
[1755916321403,5.07637879,4712.9,4712.8,0.02]
[1755916321669,8.566,4712.9,4712.8,0.02]
[1755916322486,8.566,4712.9,4712.8,0.021]
[1755916323189,4.7374,4712.9,4712.8,0.021]
[1755916323368,8.6684,4712.9,4712.8,0.021]
[1755916323565,10.79023581,4712.9,4712.8,0.021]
[1755916323971,11.08003581,4712.9,4712.8,0.021]
[1755916324174,12.17683581,4712.9,4712.8,0.021]
[1755916324459,12.81415701,4712.9,4712.8,0.021]
[1755916324660,12.81315701,4712.9,4712.8,0.021]
[1755916325161,0.66,4712.5,4710.9,0.4648]
[1755916325363,0.1064,4711.9,4710.9,0.4648]
[1755916325537,13.7674,4711.9,4710.9,0.4648]
[1755916325953,13.92305765,4711.9,4711.5,0.4648]
[1755916326154,13.92305765,4711.9,4710.8,0.4858]
[1755916326405,9.99605765,4711.9,4711.8,0.7795]
[1755916326688,13.92205765,4711.9,4711.8,0.7795]
[1755916327039,13.92205765,4711.9,4711.8,0.3147]
[1755916327302,14.25423593,4711.9,4711.8,0.02]
[1755916327585,7.32823593,4711.9,4711.8,0.7795]
[1755916327786,11.25523593,4711.9,4711.8,0.7795]
[1755916329391,11.25523593,4711.9,4711.8,0.02]
[1755916329590,11.14883593,4711.9,4711.8,0.02]
[1755916329893,7.22183593,4711.9,4711.8,0.7795]
[1755916330251,11.14483593,4711.9,4711.8,0.7795]
[1755916330601,11.14483593,4711.9,4711.8,0.02]
[1755916331273,14.14483593,4711.9,4711.8,0.02]
[1755916331478,10.22183593,4711.9,4711.8,0.02]
[1755916331801,11.14183593,4711.9,4711.8,0.02]
[1755916331957,11.14183593,4711.9,4711.8,0.3147]
[1755916332158,7.22183593,4711.9,4711.8,0.7795]
[1755916332357,11.14083593,4711.9,4711.8,0.7795]
[1755916332596,11.13883593,4711.9,4711.8,0.7795]
[1755916332985,11.13783593,4711.9,4711.8,0.7795]
[1755916333187,14.13783593,4711.9,4711.8,0.7795]
[1755916333406,14.13783593,4711.9,4711.8,0.3147]
[1755916333563,14.13783593,4711.9,4711.8,0.02]
[1755916333962,14.13583593,4711.9,4711.8,0.02]
[1755916335185,14.42563593,4711.9,4711.8,0.02]
[1755916335359,16.54792205,4711.9,4711.8,0.02]
[1755916335559,16.98072205,4711.9,4711.8,0.02]
[1755916335794,14.42163593,4711.9,4711.8,0.02]
[1755916335994,3.0,4711.8,4711.0,0.02212]
[1755916336573,3.0,4711.6,4711.0,0.02212]
[1755916336885,3.0,4711.8,4711.0,0.02212]
[1755916337104,7.22183593,4711.9,4711.5,0.2947]
[1755916337263,3.0,4711.7,4711.5,0.2947]
[1755916337464,3.912,4711.6,4711.0,0.02212]
[1755916337874,3.0,4711.8,4711.0,0.02212]
[1755916338174,7.22183593,4711.9,4711.5,0.2947]
[1755916338373,3.913,4711.8,4711.5,0.2947]
[1755916338693,3.913,4711.8,4711.1,0.4277]
[1755916339062,3.0,4711.7,4711.0,0.02212]
[1755916339257,7.22183593,4711.9,4711.0,0.02212]
[1755916339258,3.0,4711.5,4711.0,0.02212]
[1755916339457,0.3087,4711.1,4711.0,0.02212]
[1755916339666,9.34434651,4711.1,4711.0,0.02212]
[1755916339866,10.12291697,4711.1,4711.0,0.02212]
[1755916340066,8.10667046,4711.1,4711.0,0.02212]
[1755916340270,13.12531697,4711.1,4711.0,0.02212]
[1755916340696,8.55231697,4711.1,4711.0,0.02212]
[1755916341008,8.55231697,4711.1,4710.8,0.021]
[1755916341009,2.12273663,4710.9,4710.8,0.021]
[1755916341207,5.9661,4710.9,4710.8,0.021]
[1755916341381,8.9661,4710.9,4710.8,0.021]
[1755916342124,8.9661,4710.9,4710.7,0.00096]
[1755916342125,5.78278169,4710.8,4710.7,0.00096]
[1755916342421,9.41282778,4710.8,4710.7,0.00096]
[1755916342792,2.12318732,4709.9,4708.2,0.01550278]
[1755916342977,16.19828732,4709.9,4708.4,0.4277]
[1755916343177,10.1491,4709.9,4708.4,0.4277]
[1755916343499,12.60463139,4709.9,4708.4,0.4277]
[1755916343676,16.52863139,4709.9,4708.4,0.4277]
[1755916343879,12.60463139,4709.9,4708.4,0.4277]
[1755916344208,12.29593139,4709.9,4708.8,0.4477]
[1755916344417,10.17274407,4709.9,4708.8,0.4477]
[1755916344629,10.17274407,4709.9,4709.8,0.3215]
[1755916344802,13.7614,4709.9,4709.8,0.7492]
[1755916345117,13.7614,4709.9,4709.8,0.3215]
[1755916345327,13.7614,4709.9,4709.8,0.02]
[1755916345530,16.19328732,4709.9,4709.8,0.02]
[1755916345690,26.19328732,4709.9,4709.8,0.02]
[1755916345886,26.08688732,4709.9,4709.8,0.02]
[1755916346090,26.08688732,4709.9,4708.8,0.02]
[1755916346091,3.66,4709.8,4708.8,0.02]
[1755916346287,1.633,4709.2,4708.8,0.02]
[1755916346520,3.922,4709.1,4708.8,0.02]
[1755916346721,3.922,4709.0,4708.8,0.02]
[1755916347188,3.922,4709.0,4704.9,0.14923469]
[1755916347189,5.0323,4708.9,4706.0,0.7]
[1755916347389,1.633,4709.2,4706.1,0.4277]
[1755916347390,0.11574874,4708.8,4706.1,0.4277]
[1755916347591,3.942,4708.7,4706.1,0.4277]
[1755916347833,5.12379152,4708.6,4706.1,0.4277]
[1755916348039,3.0,4708.4,4706.1,0.4277]
[1755916348218,0.66,4707.4,4706.0,0.7]
[1755916348424,3.0,4707.2,4706.0,0.7]
[1755916348723,13.0,4706.1,4704.9,0.14923469]
[1755916348926,2.12539851,4705.0,4704.9,0.14923469]
[1755916349212,2.12557922,4704.6,4700.4,0.4277]
[1755916349515,2.12557922,4704.6,4696.6,0.00167]
[1755916349516,5.78716172,4701.1,4701.0,1e-08]
[1755916349826,5.7876143,4700.1,4700.0,1e-08]
[1755916350043,5.7876143,4700.1,4694.8,0.02]
[1755916350044,0.66,4699.5,4694.8,0.02]
[1755916350244,36.86243986,4698.9,4698.8,1e-08]
[1755916350427,3.0,4698.2,4695.5,0.4277]
[1755916350613,2.12906385,4696.9,4694.8,0.02]
[1755916350940,3.0,4696.8,4696.7,4.66291591]
[1755916351113,25.77714766,4696.8,4694.8,0.02]
[1755916351315,0.66,4696.2,4694.8,0.02]
[1755916351504,3.0,4696.8,4694.8,0.02]
[1755916351700,3.0,4695.8,4694.8,0.02]
[1755916351901,3.0,4695.6,4694.8,0.02]
[1755916352207,0.66,4695.3,4694.8,0.02]
[1755916352402,0.33335862,4695.5,4693.1,0.4277]
[1755916352602,0.33335862,4695.5,4691.0,0.004608]
[1755916352603,22.77714766,4693.9,4691.0,0.004608]
[1755916352809,0.66,4693.2,4692.0,9.7007947]
[1755916353002,0.66,4693.2,4692.1,0.4277]
[1755916353003,1.633,4693.1,4692.1,0.4277]
[1755916353239,0.9185625,4693.1,4692.1,0.311906]
[1755916353545,0.9185625,4693.1,4692.0,9.7007947]
[1755916353546,0.66,4693.0,4692.0,9.7007947]
[1755916353718,0.66,4693.0,4691.0,0.004608]
[1755916353719,5.295,4692.1,4691.0,0.004608]
[1755916353916,4.28,4692.0,4691.0,0.004608]
[1755916354125,4.28,4691.9,4689.8,0.03634879]
[1755916354312,1.635,4692.1,4689.8,0.03634879]
[1755916354313,4.635,4692.1,4689.8,0.03634879]
[1755916354515,4.635,4692.1,4688.8,0.02]
[1755916354516,3.0,4691.9,4688.8,0.02]
[1755916354830,10.0,4692.2,4688.8,0.02]
[1755916354831,1.635,4691.8,4688.8,0.02]
[1755916355052,0.33372549,4691.4,4688.8,0.02]
[1755916355204,2.57693998,4693.5,4688.8,0.02]
[1755916355205,5.109,4694.8,4689.0,0.66]
[1755916355450,0.7427424,4698.4,4688.9,0.4277]
[1755916355451,0.33357145,4695.5,4691.7,0.66]
[1755916355672,5.109,4700.1,4692.0,0.66]
[1755916355949,5.109,4700.1,4692.1,45.81287343]
[1755916355950,0.05,4696.4,4692.1,45.81287343]
[1755916356299,0.05,4692.0,4691.3,0.4277]
[1755916356451,0.05,4690.5,4690.3,0.58891684]
[1755916356783,4.379,4691.4,4690.4,0.4277]
[1755916357084,4.379,4691.4,4690.3,0.16121684]
[1755916357085,0.05,4691.4,4690.3,0.4277]
[1755916357283,0.05,4691.7,4690.3,0.4277]
[1755916357501,0.05,4693.1,4690.3,0.4277]
[1755916357645,0.15823275,4694.3,4690.5,0.66]
[1755916357845,0.05,4693.6,4690.7,0.66]
[1755916358086,6.035,4694.4,4690.8,0.4277]
[1755916358087,0.05,4692.4,4690.8,0.4277]
[1755916358392,6.035,4694.4,4690.9,0.02131787]
[1755916358393,1.636,4693.9,4690.9,0.02131787]
[1755916358593,1.636,4693.9,4690.1,1.636]
[1755916358594,0.05,4694.5,4691.1,0.66]
[1755916358799,1.636,4694.8,4690.2,3.66]
[1755916358800,1.636,4694.8,4691.3,0.66]
[1755916359117,1.636,4694.8,4690.8,4.404]
[1755916359118,1.636,4694.8,4691.5,0.66]
[1755916359376,1.636,4694.8,4691.7,0.66]
[1755916359377,0.05,4694.8,4691.7,0.66]
[1755916359595,0.05,4694.1,4691.9,0.66]
[1755916359764,0.05,4693.7,4692.1,0.66]
[1755916360099,1.687,4695.0,4692.3,0.66]
[1755916360297,5.5603,4696.3,4692.5,0.66]
[1755916360298,0.05,4695.4,4692.5,0.66]
[1755916360455,0.04,4695.8,4692.8,0.66]
[1755916360654,0.04,4695.8,4693.0,0.66]
[1755916360894,0.04,4695.8,4693.2,0.66]
[1755916361058,0.04,4695.8,4693.4,0.66]
[1755916361260,0.04,4695.8,4693.9,0.66]
[1755916361461,0.02,4696.8,4694.6,0.66]
[1755916361773,0.15795759,4698.2,4694.9,0.66]
[1755916361948,0.05,4697.7,4695.0,0.4277]
[1755916362155,0.05,4696.6,4695.0,0.4277]
[1755916362462,0.05,4696.4,4691.6,5.567]
[1755916362783,1.637,4696.3,4693.6,0.4277]
[1755916363001,0.18070152,4698.8,4693.7,31.637]
[1755916363002,1.637,4697.2,4693.7,31.637]
[1755916363287,1.637,4698.2,4693.9,0.66]
[1755916363455,1.637,4698.2,4694.1,0.66]
[1755916363456,0.05,4698.0,4694.1,0.66]
[1755916363649,0.02,4694.8,4694.3,0.66]
[1755916363881,1.637,4698.2,4694.9,0.66]
[1755916364081,0.02,4698.8,4694.7,0.4277]
[1755916364082,0.05,4696.1,4694.7,0.4277]
[1755916364258,1.637,4696.1,4693.9,0.4277]
[1755916364580,0.3531821,4698.8,4694.0,0.4277]
[1755916364581,1.637,4697.5,4694.0,0.4277]
[1755916364779,1.637,4697.4,4694.1,0.66]
[1755916364981,0.4463,4698.5,4694.3,0.66]
[1755916364982,1.637,4697.3,4694.3,0.66]
[1755916365184,0.05,4696.8,4694.4,2.0647]
[1755916365361,0.05,4695.7,4693.2,0.4277]
[1755916365553,0.05,4695.2,4693.2,0.4277]
[1755916365880,1.637,4695.6,4693.2,0.4277]
[1755916366160,0.1064,4694.8,4694.1,0.1064]
[1755916366362,1.637,4695.6,4693.2,2.0647]
[1755916366564,0.05,4695.3,4693.2,2.0647]
[1755916366766,1.637,4695.6,4693.3,0.44900696]
[1755916367098,0.05,4695.3,4693.3,0.4277]
[1755916367382,1.687,4695.6,4693.3,0.4277]
[1755916367685,0.05,4695.5,4693.3,0.4277]
[1755916368183,0.05,4695.5,4693.4,0.66]
[1755916368788,0.05,4695.5,4689.2,0.01406558]
[1755916368789,0.05,4691.5,4689.2,0.01406558]
[1755916368994,0.047,4691.2,4689.2,0.01406558]
[1755916369282,4.487,4691.6,4689.2,0.01406558]
[1755916369283,0.047,4690.9,4689.2,0.01406558]
[1755916369895,1.637,4691.1,4689.4,0.4359]
[1755916370063,1.637,4691.1,4689.8,0.02]
[1755916370424,1.637,4691.9,4690.3,0.66]
[1755916370688,1.637,4691.9,4690.2,0.4359]
[1755916370689,1.637,4692.0,4690.2,0.66]
[1755916370857,1.637,4691.9,4690.2,0.66]
[1755916371062,1.637,4691.8,4689.8,0.02]
[1755916371393,0.047,4690.9,4689.8,0.02]
[1755916371561,0.047,4690.3,4689.8,0.02]
[1755916371760,0.047,4691.1,4689.8,0.02]
[1755916371991,3.0,4693.2,4689.8,0.02]
[1755916372288,0.18071051,4694.8,4689.8,0.02]
[1755916372289,6.196,4693.1,4690.0,0.66]
[1755916372452,0.047,4692.6,4690.2,0.66]
[1755916372651,6.197,4693.0,4690.1,0.4359]
[1755916372652,0.047,4692.0,4690.1,0.4359]
[1755916372898,6.198,4691.9,4689.8,0.021]
[1755916373196,0.5,4696.0,4689.8,0.021]
[1755916373197,1.638,4691.8,4690.3,0.66]
[1755916373512,0.047,4690.4,4689.8,0.021]
[1755916373795,2.0714,4690.3,4689.8,0.021]
[1755916373954,1.638,4690.9,4689.8,0.021]
[1755916374199,1.638,4691.9,4689.8,0.021]
[1755916374401,1.638,4691.9,4690.0,0.66]
[1755916374604,1.638,4692.9,4690.2,0.66]
[1755916374819,1.638,4693.5,4690.4,0.66]
[1755916375130,1.638,4693.5,4690.5,0.4359]
[1755916375492,0.02,4691.8,4690.6,0.68131923]
[1755916375734,0.02,4691.8,4690.8,0.66]
[1755916376034,0.02,4691.8,4689.8,0.681]
[1755916376035,0.02,4691.8,4691.0,0.66]
[1755916376235,0.02,4691.8,4689.9,1.638]
[1755916376438,0.02,4691.8,4689.9,0.4359]
[1755916376798,0.02,4691.8,4691.4,0.1064]
[1755916377002,0.02,4691.8,4689.9,0.4359]
[1755916377003,0.02,4691.8,4691.6,0.66]
[1755916377202,0.02,4692.8,4691.8,30.66]
[1755916377417,0.02,4692.8,4692.7,0.1064]
[1755916377738,0.02,4692.8,4692.4,0.1064]
[1755916377902,0.02,4692.8,4691.8,0.66]
[1755916378105,0.02,4692.8,4692.2,0.1064]
[1755916378413,0.02,4692.8,4692.3,0.66]
[1755916378612,0.02,4692.8,4692.5,0.66]
[1755916378825,0.02,4692.8,4692.7,0.7664]
[1755916379204,0.02,4692.8,4689.5,0.453]
[1755916379539,0.02,4692.8,4690.5,1.638]
[1755916379741,0.02,4692.8,4691.3,0.4359]
[1755916379913,1.638,4692.7,4690.5,1.638]
[1755916380504,0.047,4690.9,4688.0,0.4359]
[1755916380836,0.047,4690.9,4688.1,0.0213306]
[1755916380837,2.0714,4690.8,4688.1,0.0213306]
[1755916381036,0.047,4690.6,4688.0,0.4359]
[1755916381224,2.0714,4690.8,4686.9,1.638]
[1755916381426,0.02,4692.8,4689.9,0.45722241]
[1755916381605,0.02,4691.8,4690.8,0.02]
[1755916381800,0.02,4692.8,4691.0,0.66]
[1755916382040,0.02,4692.8,4691.2,3.66]
[1755916382247,0.02,4692.8,4690.8,0.02]
[1755916382740,0.02,4692.8,4690.9,0.68131787]
[1755916382949,0.02,4692.8,4690.9,1.0959]
[1755916383151,0.02,4692.8,4690.9,1.0659]
[1755916384029,0.02,4692.8,4691.0,0.4359]
[1755916385245,0.02,4692.8,4691.1,0.66]
[1755916386563,0.02,4692.8,4691.3,0.66]
[1755916386805,0.02,4694.8,4691.9,0.453]
[1755916386939,0.02,4694.8,4692.1,0.66]
[1755916387262,0.02,4694.8,4692.4,0.66]
[1755916387434,0.02,4694.8,4692.2,40.0]
[1755916387435,0.02,4694.8,4693.1,0.66]
[1755916387627,0.02,4694.8,4693.3,4.113]
[1755916387956,0.02,4693.8,4693.5,3.66]
[1755916388154,0.02,4693.8,4693.2,2.0749]
[1755916388155,0.02,4696.8,4694.1,0.66]
[1755916388355,0.02,4696.8,4695.0,0.66]
[1755916388556,0.4334,4699.6,4695.7,0.66]
[1755916388725,0.047,4699.2,4695.9,3.66]
[1755916388931,0.047,4697.6,4694.9,0.4359]
[1755916389224,0.047,4697.6,4692.7,23.33163676]
[1755916389225,0.1064,4696.7,4696.0,0.1064]
[1755916389454,5.122,4699.3,4697.1,0.1064]
[1755916389455,0.1264,4697.8,4697.1,0.1064]
[1755916389765,0.1264,4697.8,4697.0,0.1064]
[1755916389968,0.1264,4697.8,4697.1,0.66]
[1755916390151,0.02,4697.8,4696.1,0.66]
[1755916390480,0.02,4697.8,4696.5,0.1064]
[1755916390481,0.1064,4697.2,4696.5,0.1064]
[1755916390644,0.1064,4697.2,4694.9,0.4359]
[1755916390645,1.638,4697.4,4695.1,1.638]
[1755916390980,1.638,4697.4,4695.2,0.66]
[1755916391670,0.047,4696.6,4694.2,1.638]
[1755916391843,0.02,4697.8,4694.2,1.638]
[1755916391844,1.638,4696.5,4694.2,1.638]
[1755916392030,1.638,4696.4,4694.2,1.638]
[1755916392364,2.0714,4697.3,4694.5,0.66]
[1755916392565,1.638,4697.3,4694.7,0.66]
[1755916392767,0.047,4696.9,4694.7,0.66]
[1755916392939,0.4334,4697.2,4694.4,0.66]
[1755916393831,0.047,4696.5,4694.4,0.66]
[1755916394033,0.02,4697.8,4694.4,0.66]
[1755916394034,0.63973,4697.1,4694.6,0.66]
[1755916394330,0.63973,4697.1,4694.3,1.638]
[1755916394331,0.02,4697.8,4694.9,0.66]
[1755916394663,0.02,4697.8,4696.8,0.02]
[1755916395232,1.658,4697.8,4696.8,0.02]
[1755916396548,0.02,4697.8,4696.8,0.02]
[1755916398462,0.02,4697.8,4697.1,0.66]
[1755916398649,0.4334,4700.2,4697.3,3.66]
[1755916398840,0.047,4700.5,4697.5,3.66]
[1755916399042,0.4623,4700.7,4697.6,0.02128746]
[1755916399243,1.637,4700.1,4697.5,0.66]
[1755916399461,1.637,4700.1,4697.7,0.66]
[1755916399862,1.637,4700.1,4697.9,0.66]
[1755916400057,0.4623,4701.0,4697.9,0.66]
[1755916400256,1.677,4700.8,4697.9,0.66]
[1755916400498,1.677,4700.8,4698.1,0.66]
[1755916400499,0.4623,4700.0,4698.1,0.66]
[1755916400809,0.1264,4699.8,4698.7,0.7664]
[1755916401088,0.02,4699.8,4698.7,2.4034]
[1755916401287,0.02,4699.8,4698.7,0.7664]
[1755916401490,0.1064,4699.5,4698.7,0.7664]
[1755916401856,0.02,4699.8,4698.7,0.66]
[1755916403458,0.02,4699.8,4694.9,0.16003547]
[1755916403459,0.4623,4699.4,4697.2,1.637]
[1755916403987,0.4623,4699.4,4697.2,2.0694]
[1755916404187,0.4623,4699.4,4697.3,0.68128882]
[1755916404423,0.5093,4698.7,4696.1,1.637]
[1755916404907,0.5093,4698.7,4697.8,0.02]
[1755916406274,0.047,4698.1,4697.8,0.02]
[1755916406476,0.4623,4698.0,4697.8,0.02]
[1755916406660,0.4623,4697.9,4697.8,0.02]
[1755916407554,0.5093,4697.9,4697.8,0.02]
[1755916407751,0.4623,4697.9,4697.8,0.02]
[1755916407992,0.5093,4697.9,4697.8,0.02]
[1755916408173,2.1463,4697.9,4697.8,0.02]
[1755916408700,2.1463,4697.9,4696.1,0.001]
[1755916408701,0.047,4696.2,4696.1,0.001]
[1755916408849,1.684,4696.2,4696.1,0.001]
[1755916409048,2.1463,4696.2,4696.1,0.001]
[1755916409287,2.0993,4696.2,4696.1,0.001]
[1755916409700,2.1463,4696.2,4696.1,0.001]
[1755916411790,1.7434,4696.4,4696.1,0.001]
[1755916411985,0.1534,4696.4,4696.1,0.001]
[1755916412302,0.1064,4696.3,4696.1,0.001]
[1755916412657,1.684,4696.7,4696.1,0.001]
[1755916412859,0.3802531,4698.1,4696.1,0.001]
[1755916413070,0.047,4698.2,4696.1,0.001]
[1755916413283,0.047,4697.5,4696.1,0.001]
[1755916413558,1.637,4697.9,4696.1,0.001]
[1755916413781,1.637,4697.9,4696.1,0.02229426]
[1755916414096,0.047,4697.5,4696.1,0.001]
[1755916414466,0.33514932,4699.2,4696.1,0.001]
[1755916414467,0.4623,4697.9,4696.1,0.001]
[1755916414666,0.047,4697.3,4696.1,0.001]
[1755916414890,1.637,4697.8,4696.1,0.001]
[1755916414891,0.047,4697.5,4696.1,0.001]
[1755916415193,0.5093,4697.2,4696.1,0.001]
[1755916415582,1.637,4697.9,4696.1,0.001]
[1755916415900,2.0993,4698.0,4696.1,0.001]
[1755916416570,0.047,4697.2,4696.1,0.001]
[1755916416790,1.637,4697.1,4696.1,0.001]
[1755916416982,0.047,4696.3,4696.1,0.001]
[1755916417177,0.047,4696.3,4695.6,0.001]
[1755916417378,1.637,4697.4,4695.6,0.001]
[1755916417679,2.0993,4697.6,4695.6,0.001]
[1755916418200,0.047,4697.2,4695.6,0.001]
[1755916418688,2.0993,4697.6,4695.6,0.001]
[1755916418989,0.4623,4697.1,4695.6,0.001]
[1755916419991,0.047,4696.5,4695.6,0.001]
[1755916420161,1.637,4696.4,4695.6,0.001]
[1755916420364,0.047,4696.0,4695.6,0.001]
[1755916420896,0.4623,4695.9,4695.6,0.001]
[1755916421284,0.047,4696.0,4695.6,0.001]
[1755916421285,0.4623,4695.8,4695.6,0.001]
[1755916421486,0.047,4696.0,4695.6,0.001]
[1755916421794,1.637,4696.4,4695.6,0.001]
[1755916421993,2.0993,4696.4,4695.6,0.001]
[1755916422193,0.047,4696.0,4695.6,0.001]
[1755916422492,2.0993,4696.4,4695.6,0.001]
[1755916422887,0.1064,4695.7,4695.6,0.001]
[1755916423216,0.047,4695.7,4695.6,0.001]
[1755916423405,0.5093,4695.7,4695.6,0.001]
[1755916423573,0.047,4695.2,4695.1,0.001]
[1755916423774,1.684,4695.2,4695.1,0.001]
[1755916423982,0.047,4694.9,4692.7,1.637]
[1755916424600,0.047,4694.9,4691.7,0.043]
[1755916424601,1.637,4695.2,4693.2,1.637]
[1755916424776,1.637,4695.2,4693.3,0.66]
[1755916424969,0.047,4694.9,4693.3,0.66]
[1755916425169,0.4623,4695.1,4693.3,0.66]
[1755916425376,0.4623,4695.1,4693.2,1.637]
[1755916425377,0.5093,4694.9,4693.2,1.637]
[1755916425779,0.4623,4694.9,4693.2,1.637]
[1755916426103,0.4623,4694.9,4693.3,0.66]
[1755916426284,1.637,4695.2,4693.3,0.66]
[1755916426805,3.0,4697.0,4693.4,0.45370651]
[1755916426806,2.0993,4696.3,4693.4,0.45370651]
[1755916427181,6.6203,4696.3,4693.4,0.45370651]
[1755916427387,0.047,4695.5,4693.4,0.45370651]
[1755916427586,2.0993,4696.3,4694.1,0.66]
[1755916427790,2.0993,4696.3,4694.3,0.66]
[1755916428003,2.0993,4696.3,4694.2,0.66]
[1755916428312,0.047,4695.5,4693.5,0.66]
[1755916428508,0.4966,4695.5,4693.5,0.66]
[1755916429084,0.4966,4695.5,4693.6,0.0213056]
[1755916429395,0.4496,4695.5,4693.6,0.0213056]
[1755916429711,0.4496,4695.5,4693.5,0.66]
[1755916429712,0.047,4695.0,4693.5,0.66]
[1755916430287,0.4496,4694.9,4693.5,0.66]
[1755916430587,0.047,4695.0,4693.5,0.66]
[1755916431207,0.4496,4694.9,4693.5,0.66]
[1755916431389,0.047,4695.0,4693.5,0.66]
[1755916431713,1.637,4695.1,4693.7,0.4723]
[1755916431911,1.637,4695.1,4693.8,0.68130469]
[1755916432085,2.0866,4696.1,4693.8,0.66]
[1755916432287,2.0866,4696.1,4693.4,1.637]
[1755916432288,1.637,4696.1,4693.5,0.66]
[1755916432501,1.637,4696.1,4694.4,2.297]
[1755916432679,0.002,4697.8,4695.0,3.0]
[1755916432877,0.002,4697.8,4695.5,3.66]
[1755916433081,0.002,4697.8,4696.6,17.32000203]
[1755916433308,0.002,4697.8,4697.7,0.7664]
[1755916433511,0.002,4697.8,4697.7,0.66]
[1755916433879,0.002,4697.8,4695.6,1.637]
[1755916433880,0.047,4697.7,4695.6,1.637]
[1755916434084,0.047,4697.7,4695.7,0.66]
[1755916434313,0.047,4697.7,4695.6,1.637]
[1755916434626,0.4516,4697.8,4695.7,0.02129607]
[1755916434627,0.002,4697.8,4695.7,0.02129607]